bitfinex-derivatives/quotes_SOLF0:USTF0_20260114
["timestamp","ask_amount","ask_price","bid_price","bid_amount"]
[1768419864989,62.46252642,146.95,146.89,0.04825395]
[1768419871397,68.58722642,146.95,146.89,0.04825395]
[1768419872200,62.46252642,146.95,146.89,0.04825395]
[1768419873795,62.46252642,146.97,146.89,61.25072894]
[1768419874099,62.46252642,146.97,146.92,0.04901535]
[1768419874794,68.58622642,146.97,146.92,0.04901535]
[1768419875595,62.46252642,146.97,146.92,0.04901535]
[1768419875793,64.53970534,146.97,146.92,0.04901535]
[1768419876203,64.53970534,146.97,146.89,61.20247499]
[1768419876892,68.58702642,146.95,146.87,63.32866926]
[1768419877292,0.04593277,146.92,146.9,0.0461992]
[1768419877802,62.46252642,146.95,146.9,0.0461992]
[1768419883404,64.53970534,146.97,146.9,61.29768954]
[1768419884500,62.46252642,146.97,146.9,61.29768954]
[1768419886205,68.58622642,146.97,146.9,61.29768954]
[1768419887003,68.58662642,146.96,146.9,61.29768954]
[1768419890301,62.46252642,146.96,146.9,61.29768954]
[1768419893208,68.58662642,146.96,146.9,61.29768954]
[1768419897407,65.74325153,146.94,146.9,0.0461992]
[1768419897612,65.74325153,146.94,146.87,61.26608636]
[1768419898100,71.86815153,146.94,146.87,61.26608636]
[1768419898606,0.04890189,146.92,146.89,0.05093725]
[1768419900214,65.79215342,146.92,146.85,67.39428636]
[1768419901114,65.79215342,146.92,146.87,0.04624195]
[1768419901115,71.91805342,146.92,146.87,0.04624195]
[1768419901511,65.79215342,146.92,146.87,0.04624195]
[1768419901813,67.82043045,146.91,146.87,0.04624195]
[1768419902413,73.94663045,146.91,146.87,0.04624195]
[1768419902614,67.82043045,146.91,146.87,0.04624195]
[1768419903508,73.94663045,146.91,146.87,0.04624195]
[1768419904316,65.74325153,146.87,146.79,66.36326556]
[1768419904502,65.74325153,146.87,146.79,61.36326556]
[1768419905016,2.07717892,146.88,146.79,63.44044448]
[1768419905215,2.07717892,146.88,146.82,61.41198381]
[1768419905408,65.74325153,146.89,146.82,61.41198381]
[1768419906314,0.04775632,146.87,146.82,67.54178381]
[1768419906517,2.07717892,146.9,146.82,67.54178381]
[1768419907110,67.82043045,146.9,146.82,67.54178381]
[1768419907711,0.04605857,146.87,146.82,67.54178381]
[1768419907908,67.82043045,146.9,146.82,67.54178381]
[1768419909710,67.82043045,146.88,146.82,6.17851825]
[1768419909910,67.82043045,146.88,146.84,0.04779923]
[1768419913124,67.82043045,146.88,146.8,67.49376556]
[1768419913621,65.74325153,146.83,146.74,63.48824371]
[1768419913816,65.74325153,146.83,146.74,68.48824371]
[1768419914218,65.74325153,146.83,146.77,61.45744337]
[1768419915315,2.07717892,146.84,146.77,61.45744337]
[1768419915519,67.82043045,146.84,146.77,61.45744337]
[1768419917727,67.82043045,146.84,146.77,67.58924337]
[1768419918939,67.82043045,146.84,146.78,6.1315]
[1768419919440,65.74325153,146.84,146.78,6.1315]
[1768419919836,68.99243038,146.88,146.77,61.45744337]
[1768419920032,68.99243038,146.88,146.81,0.05001067]
[1768419920429,68.99243038,146.88,146.81,61.50039468]
[1768419920738,65.74325153,146.88,146.81,61.50039468]
[1768419921843,65.74325153,146.88,146.82,6.1298]
[1768419924143,65.74325153,146.88,146.83,6.1292]
[1768419924343,62.6023955,146.91,146.84,0.04300705]
[1768419925137,65.85157435,146.94,146.84,61.56987893]
[1768419925336,62.6023955,146.94,146.88,0.04774245]
[1768419925537,65.85157435,146.94,146.88,0.04774245]
[1768419926233,71.97657435,146.94,146.88,0.04774245]
[1768419926634,62.6023955,146.94,146.88,0.04774245]
[1768419930838,62.6023955,146.97,146.88,61.57461433]
[1768419931039,62.6023955,146.97,146.91,0.04760016]
[1768419934643,62.6023955,146.97,146.91,67.70047204]
[1768419934947,62.6023955,146.97,146.91,0.04760016]
[1768419941641,62.6023955,146.97,146.87,5.0]
[1768419941842,62.6023955,146.95,146.85,61.57447204]
[1768419942151,68.7277955,146.93,146.83,67.70367204]
[1768419942651,62.64557754,146.9,146.83,67.70367204]
[1768419943449,62.64557754,146.9,146.84,6.129]
[1768419943650,62.64557754,146.9,146.86,0.04378628]
[1768419948357,0.04318204,146.9,146.86,0.04378628]
[1768419948560,62.6023955,146.92,146.86,0.04378628]
[1768419949155,62.6023955,146.92,146.86,6.17198628]
[1768419949549,0.04999789,146.9,146.86,6.17198628]
[1768419950353,60.91919237,146.9,146.86,0.04378628]
[1768419951854,60.91919237,146.9,146.86,6.17198628]
[1768419953357,50.35469237,146.9,146.87,6.1277]
[1768419953564,3.24917885,146.95,146.87,6.1277]
[1768419954764,3.24917885,146.95,146.88,6.1274]
[1768419954961,3.24917885,146.95,146.86,61.1532753]
[1768419955458,0.04907985,146.92,146.89,0.05126304]
[1768419956262,60.91827433,146.92,146.89,0.05126304]
[1768419958859,60.91827433,146.92,146.85,6.1286]
[1768419959167,60.91827433,146.92,146.84,61.1532753]
[1768419959364,60.91827433,146.92,146.83,6.1292]
[1768419959555,60.86919448,146.92,146.83,6.1292]
[1768419959959,0.04794557,146.89,146.86,0.04440518]
[1768419961060,3.24917885,146.93,146.86,61.19768048]
[1768419961061,60.86919448,146.93,146.86,61.19768048]
[1768419962159,60.9126115,146.91,146.86,0.04440518]
[1768419964667,60.9126115,146.91,146.86,6.17260518]
[1768419964962,60.86919448,146.95,146.86,61.19768048]
[1768419965268,60.86919448,146.98,146.86,69.40245415]
[1768419965668,60.86919448,146.98,146.88,61.1532753]
[1768419965867,60.86919448,146.98,146.92,0.0446117]
[1768419966558,60.86919448,146.98,146.92,61.197887]
[1768419967064,60.86919448,147.01,146.92,61.197887]
[1768419967266,60.86919448,147.03,146.95,0.05016103]
[1768419967475,60.86919448,147.03,146.98,0.04747391]
[1768419968969,64.11837333,147.03,146.91,61.1532753]
[1768419969172,60.86919448,147.0,146.91,61.1532753]
[1768419970171,0.04872737,146.97,146.94,0.04635737]
[1768419971767,60.91792185,146.97,146.88,61.1532753]
[1768419971967,64.11837333,146.97,146.88,61.1532753]
[1768419972781,0.04758149,146.94,146.91,0.04853982]
[1768419974877,0.04758149,146.94,146.85,61.1532753]
[1768419974878,60.91677597,146.94,146.85,61.1532753]
[1768419975078,60.86919448,146.94,146.85,61.1532753]
[1768419975779,0.05145167,146.91,146.88,0.04468578]
[1768419975979,60.92064615,146.91,146.82,141.5732753]
[1768419976179,60.86919448,146.91,146.82,141.5732753]
[1768419976381,60.86919448,146.91,146.82,147.7028753]
[1768419976681,64.11837333,146.91,146.82,80.42]
[1768419976883,64.11837333,146.91,146.79,61.1532753]
[1768419976884,60.91433031,146.88,146.79,61.1532753]
[1768419977177,60.86919448,146.88,146.79,61.1532753]
[1768419977983,0.05008485,146.85,146.82,0.0433355]
[1768419979076,60.86919448,146.88,146.82,0.0433355]
[1768419979277,62.94754329,146.88,146.82,0.0433355]
[1768419979681,62.94754329,146.86,146.82,0.0433355]
[1768419979882,2.07834881,146.84,146.78,80.42]
[1768419980776,0.05077392,146.82,146.8,0.04813064]
[1768419986294,2.07834881,146.86,146.8,0.04813064]
[1768419986496,64.22406571,146.86,146.8,0.04813064]
[1768419987292,0.05021365,146.84,146.8,0.04813064]
[1768419987594,64.27427936,146.84,146.8,0.04813064]
[1768419990495,0.05021365,146.84,146.8,62.3704159]
[1768419990795,2.07834881,146.89,146.8,62.3704159]
[1768419990986,64.22406571,146.89,146.8,64.40063407]
[1768419991387,64.22406571,146.89,146.8,70.53113407]
[1768419991697,0.04524102,146.86,146.83,0.04724283]
[1768419992087,2.07834881,146.91,146.83,62.36952809]
[1768419992088,64.22406571,146.91,146.83,62.36952809]
[1768419993800,64.22406571,146.91,146.83,68.49892809]
[1768419994095,0.04737964,146.88,146.83,68.49892809]
[1768419994997,0.04737964,146.88,146.84,6.1289]
[1768419996185,64.22406571,146.91,146.84,6.1289]
[1768419997097,64.22406571,146.91,146.86,0.04404245]
[1768420001294,62.1457169,146.91,146.86,0.04404245]
[1768420005894,2.07834881,146.93,146.86,62.36632771]
[1768420006093,144.68406571,146.94,146.86,62.36632771]
[1768420006298,62.1457169,146.93,146.86,64.44467652]
[1768420006501,62.1457169,146.93,146.88,0.050258]
[1768420006798,64.22406571,146.95,146.88,6.177558]
[1768420006997,62.1457169,146.95,146.88,62.37254326]
[1768420007898,62.1457169,146.95,146.89,62.32228526]
[1768420008103,62.1457169,146.98,146.9,64.40063407]
[1768420008302,62.1457169,146.98,146.93,0.0517315]
[1768420008802,2.07834881,147.01,146.93,0.0517315]
[1768420009006,62.1457169,147.0,146.96,0.0517054]
[1768420011006,64.17525758,146.98,146.9,76.15070394]
[1768420011203,64.17525758,146.98,146.9,71.15070394]
[1768420012102,64.17525758,146.98,146.93,0.04408461]
[1768420012606,2.07834881,147.0,146.93,0.04408461]
[1768420012808,2.07834881,147.0,146.93,65.06838855]
[1768420013905,66.25360639,147.0,146.93,71.19348855]
[1768420014105,66.25360639,147.0,146.93,0.04408461]
[1768420014503,66.25360639,146.99,146.93,0.04408461]
[1768420014706,66.25360639,146.99,146.95,0.04605702]
[1768420016307,64.17525758,146.99,146.95,0.04605702]
[1768420021209,64.17525758,146.99,146.95,6.17045702]
[1768420023213,64.17525758,146.99,146.95,0.04605702]
[1768420023508,64.17525758,146.95,146.88,65.02430394]
[1768420023708,64.17525758,146.95,146.86,65.02430394]
[1768420024013,66.25360639,146.94,146.9,6.1263]
[1768420024311,0.05196173,146.93,146.91,0.04431763]
[1768420024810,0.05196173,146.93,146.9,6.1263]
[1768420025010,64.22721931,146.93,146.88,6.1271]
[1768420025316,64.17525758,146.95,146.88,65.02430394]
[1768420025605,2.07834881,146.99,146.93,6.1253]
[1768420026404,115.60043358,147.1,146.9,65.02430394]
[1768420026405,2.12721558,146.97,146.91,6.1258]
[1768420026716,175.6626,147.06,146.91,6.1258]
[1768420027005,2.07834881,146.97,146.91,6.1258]
[1768420027515,0.05064007,146.95,146.93,0.0438169]
[1768420027922,0.05064007,146.95,146.91,6.1258]
[1768420028113,66.30424646,146.95,146.89,6.1269]
[1768420028506,66.30424646,146.95,146.88,65.02430394]
[1768420029111,66.30424646,146.95,146.9,0.0443078]
[1768420030717,66.30424646,146.95,146.9,6.1708078]
[1768420033413,64.22589765,146.95,146.9,6.1708078]
[1768420033620,66.30424646,146.95,146.9,6.1708078]
[1768420034812,66.25360639,146.92,146.83,5.0]
[1768420035019,66.25360639,146.9,146.82,145.44430394]
[1768420035719,0.04994255,146.87,146.85,0.05050956]
[1768420038014,66.25360639,146.9,146.85,0.05050956]
[1768420039020,0.04707584,146.89,146.85,0.05050956]
[1768420040120,64.22233342,146.89,146.85,0.05050956]
[1768420046327,64.22233342,146.89,146.81,6.1301]
[1768420046629,60.8558955,146.87,146.79,66.0465789]
[1768420047329,0.04901325,146.84,146.82,0.05168751]
[1768420047514,60.8558955,146.87,146.82,0.05168751]
[1768420048525,60.8558955,146.87,146.82,6.18158751]
[1768420048719,0.04720762,146.86,146.82,6.18158751]
[1768420049732,0.04720762,146.86,146.82,0.05168751]
[1768420050623,60.90310312,146.86,146.82,0.05168751]
[1768420050927,60.90310312,146.86,146.78,80.44]
[1768420051428,60.90310312,146.86,146.79,6.1311]
[1768420051829,60.90310312,146.86,146.81,0.04426977]
[1768420055330,0.04720762,146.86,146.81,0.04426977]
[1768420056728,0.04720762,146.86,146.77,95.3838]
[1768420056729,60.8558955,146.83,146.76,66.0465789]
[1768420057628,0.04445301,146.81,146.78,0.04993096]
[1768420061134,60.8558955,146.83,146.78,0.04993096]
[1768420062136,0.04887736,146.82,146.78,0.04993096]
[1768420062544,0.0214734,146.82,146.78,66.09650986]
[1768420062730,60.8558955,146.87,146.78,67.45650986]
[1768420062930,60.8558955,146.87,146.78,66.0465789]
[1768420063736,60.8558955,146.87,146.81,0.04942942]
[1768420063937,0.04360508,146.85,146.81,0.04942942]
[1768420065738,60.89950058,146.85,146.81,0.04942942]
[1768420066335,60.89950058,146.85,146.79,80.48]
[1768420067442,60.89950058,146.85,146.81,0.04815262]
[1768420077244,0.04360508,146.85,146.81,65.58538343]
[1768420077750,0.04360508,146.85,146.81,0.04815262]
[1768420079041,0.04360508,146.85,146.81,6.17825262]
[1768420080948,64.18661656,146.9,146.82,65.53723081]
[1768420081152,64.18661656,146.9,146.82,70.53723081]
[1768420081648,64.18661656,146.9,146.82,65.53723081]
[1768420081847,64.18661656,146.9,146.83,6.1291]
[1768420082054,0.04631302,146.87,146.85,0.04881138]
[1768420082351,0.04713609,146.87,146.85,0.04881138]
[1768420086051,67.43324457,146.94,146.85,65.58604219]
[1768420086255,67.43324457,146.94,146.85,65.53723081]
[1768420087150,0.04921014,146.91,146.88,0.04482676]
[1768420089260,64.18661656,146.94,146.88,65.58205757]
[1768420089450,64.18661656,146.94,146.88,71.70935757]
[1768420090146,0.04357493,146.92,146.88,71.70935757]
[1768420091361,64.23019149,146.92,146.85,80.46]
[1768420091558,64.23019149,146.92,146.85,85.46]
[1768420092356,64.23019149,146.92,146.87,0.0520386]
[1768420092959,67.4768195,146.92,146.87,0.0520386]
[1768420093663,67.4768195,146.92,146.82,157.12693081]
[1768420093862,67.43324457,146.92,146.82,152.12693081]
[1768420094164,64.18661656,146.89,146.82,80.46]
[1768420094663,0.04934194,146.87,146.84,0.04370903]
[1768420101564,0.04934194,146.87,146.84,68.47431403]
[1768420102561,65.0625046,146.91,146.84,68.47431403]
[1768420102862,65.0625046,146.91,146.84,68.430605]
[1768420103464,0.04707066,146.89,146.86,0.04950814]
[1768420107162,65.10957526,146.89,146.82,91.5896]
[1768420107364,65.0625046,146.85,146.78,67.301605]
[1768420107567,65.0625046,146.85,146.78,62.301605]
[1768420107966,65.0625046,146.85,146.77,80.46]
[1768420108164,0.05033513,146.82,146.8,0.04404131]
[1768420108360,0.00082699,146.82,146.8,0.04404131]
[1768420112966,62.98467432,146.88,146.8,0.04404131]
[1768420113167,65.0625046,146.87,146.79,68.432705]
[1768420113973,0.04599045,146.84,146.82,0.05082016]
[1768420116071,0.04599045,146.84,146.8,68.432305]
[1768420116072,0.04599045,146.84,146.78,6.1313]
[1768420116276,0.04599045,146.84,146.77,147.761605]
[1768420116777,63.03066477,146.84,146.77,142.761605]
[1768420117178,63.03066477,146.84,146.79,0.04878899]
[1768420118175,0.04599045,146.84,146.79,0.04878899]
[1768420118771,0.04599045,146.84,146.79,6.17978899]
[1768420120584,63.03066477,146.84,146.79,0.04878899]
[1768420123286,0.04599045,146.84,146.79,62.35039399]
[1768420123481,0.04599045,146.84,146.79,68.48149399]
[1768420128797,0.04599045,146.84,146.79,0.04878899]
[1768420129085,2.12382073,146.84,146.79,0.04878899]
[1768420129391,0.04599045,146.84,146.79,62.35039399]
[1768420131595,2.07783028,146.88,146.79,62.35039399]
[1768420131786,2.07783028,146.88,146.79,67.301605]
[1768420132187,64.45573095,146.88,146.79,67.301605]
[1768420132592,0.04587644,146.85,146.82,0.04776027]
[1768420144303,0.04587644,146.85,146.82,61.95164521]
[1768420144496,64.45573095,146.9,146.82,68.08194521]
[1768420144693,64.45573095,146.9,146.82,61.90388494]
[1768420144899,64.45573095,146.92,146.82,66.90388494]
[1768420145201,64.45573095,146.92,146.84,68.03348494]
[1768420145394,62.42495254,146.89,146.82,66.90388494]
[1768420145594,62.42495254,146.89,146.83,6.1301]
[1768420146404,62.42495254,146.89,146.85,0.04612496]
[1768420149311,62.42495254,146.89,146.85,6.17532496]
[1768420149801,62.42495254,146.89,146.85,0.04612496]
[1768420151406,62.42495254,146.89,146.85,6.17542496]
[1768420153608,80.48,146.97,146.87,6.1284]
[1768420154000,2.07783028,146.93,146.87,6.1284]
[1768420154400,2.07783028,146.93,146.88,6.128]
[1768420154600,0.04788302,146.92,146.89,0.04441961]
[1768420154804,0.04788302,146.92,146.88,6.128]
[1768420155002,0.04788302,146.92,146.85,61.90388494]
[1768420155602,62.37790067,146.91,146.85,68.03308494]
[1768420155809,62.37790067,146.91,146.87,0.0455897]
[1768420159609,62.37790067,146.89,146.83,85.46]
[1768420159814,62.37790067,146.89,146.83,80.46]
[1768420160515,0.04892454,146.87,146.85,0.05128365]
[1768420165117,65.82241866,146.91,146.85,0.05128365]
[1768420165314,65.82241866,146.91,146.85,62.25325519]
[1768420166213,0.04946947,146.89,146.85,62.25325519]
[1768420167020,65.82241866,146.93,146.85,62.25325519]
[1768420167220,65.82241866,146.93,146.85,62.20197154]
[1768420167520,65.82241866,146.93,146.85,68.33107154]
[1768420168220,0.050367,146.9,146.88,0.04490674]
[1768420168419,0.04916442,146.9,146.88,0.04948748]
[1768420172627,65.82241866,146.94,146.88,62.25145902]
[1768420172827,65.82241866,146.96,146.88,62.20197154]
[1768420173624,65.82241866,146.96,146.91,0.04496825]
[1768420177520,3.24666785,146.98,146.91,62.24693979]
[1768420177521,65.82241866,146.98,146.91,62.24693979]
[1768420178824,65.82241866,146.98,146.91,0.04496825]
[1768420179026,69.06908651,146.98,146.91,0.04496825]
[1768420179621,69.06908651,146.98,146.88,62.20197154]
[1768420179622,69.06908651,146.98,146.88,6.1277]
[1768420180627,65.87032278,146.94,146.88,6.1277]
[1768420181132,65.87032278,146.94,146.86,68.33047154]
[1768420181433,65.87032278,146.94,146.84,62.20197154]
[1768420181616,65.82241866,146.94,146.88,0.04805855]
[1768420181927,0.04451568,146.9,146.88,0.04805855]
[1768420182130,0.05232717,146.9,146.88,0.04805855]
[1768420192937,62.26697999,146.9,146.88,0.04805855]
[1768420193241,62.26697999,146.9,146.84,68.33157154]
[1768420194043,62.26697999,146.9,146.86,0.04289833]
[1768420194344,62.26697999,146.9,146.83,85.46]
[1768420195244,62.26697999,146.9,146.85,0.04734425]
[1768420198940,65.51364784,146.9,146.85,0.04734425]
[1768420199146,71.64094784,146.9,146.85,0.04734425]
[1768420200446,62.26697999,146.9,146.85,0.04734425]
[1768420202546,65.51364784,146.9,146.85,0.04734425]
[1768420202852,65.51364784,146.9,146.8,64.17812718]
[1768420202853,62.21465282,146.88,146.8,64.17812718]
[1768420203754,0.04887919,146.85,146.83,0.04335586]
[1768420204853,62.26353201,146.85,146.79,80.44]
[1768420205055,62.26353201,146.85,146.77,298.24544052]
[1768420205553,0.04887919,146.85,146.78,64.17812718]
[1768420205752,0.04887919,146.85,146.8,0.04773566]
[1768420206542,0.04887919,146.85,146.8,64.22586284]
[1768420208351,0.04887919,146.85,146.8,70.35716284]
[1768420208753,0.04887919,146.85,146.8,64.22586284]
[1768420210555,0.04887919,146.85,146.8,70.35706284]
[1768420210854,62.21465282,146.9,146.8,70.35706284]
[1768420211054,62.21465282,146.9,146.8,70.30932718]
[1768420211357,62.21465282,146.9,146.82,64.17812718]
[1768420211658,0.04950405,146.87,146.85,0.04976786]
[1768420212554,62.21465282,146.93,146.85,64.22789504]
[1768420212862,62.21465282,146.93,146.85,64.17812718]
[1768420213045,62.21465282,146.93,146.84,86.5895]
[1768420213446,0.04460572,146.9,146.87,0.04958572]
[1768420218661,62.25925854,146.9,146.84,80.46]
[1768420219664,62.25925854,146.9,146.86,0.04554724]
[1768420220664,0.04460572,146.9,146.86,0.04554724]
[1768420221560,0.04460572,146.9,146.86,62.06379261]
[1768420221757,65.66376896,146.95,146.86,62.06379261]
[1768420221957,65.66376896,146.95,146.86,62.01824537]
[1768420222158,65.66376896,146.95,146.88,62.01824537]
[1768420222759,0.04965479,146.93,146.9,0.05025064]
[1768420224963,0.04965479,146.93,146.9,62.06849601]
[1768420225357,67.74002614,146.97,146.9,62.06849601]
[1768420226476,0.0480044,146.95,146.9,62.06849601]
[1768420228168,0.0480044,146.95,146.9,0.05025064]
[1768420228376,67.78803054,146.95,146.9,0.05025064]
[1768420229272,65.71177336,146.95,146.9,0.05025064]
[1768420232775,0.0480044,146.95,146.9,62.06849601]
[1768420236380,65.71177336,146.95,146.9,0.05025064]
[1768420238376,24.87305051,146.95,146.9,0.05025064]
[1768420239073,24.87305051,146.95,146.86,2.07625718]
[1768420239074,2.07625718,146.93,146.86,62.01824537]
[1768420239383,2.07625718,146.93,146.85,62.01824537]
[1768420240077,8.20225718,146.93,146.85,62.01824537]
[1768420240285,0.04573875,146.9,146.88,0.04982581]
[1768420250795,61.390908,146.9,146.84,5.0]
[1768420250979,63.46716518,146.9,146.83,60.52018308]
[1768420251184,63.46716518,146.9,146.81,60.52018308]
[1768420251384,63.42142643,146.9,146.81,60.52018308]
[1768420251584,0.05229617,146.87,146.84,0.04686462]
[1768420257695,285.6205,147.07,146.85,66.64918308]
[1768420257696,67.47106925,146.94,146.85,66.64918308]
[1768420257891,63.42142643,146.93,146.85,66.64918308]
[1768420258598,69.54742643,146.93,146.85,60.52018308]
[1768420258899,0.04774837,146.9,146.88,0.04645909]
[1768420259097,61.39291762,146.9,146.83,73.72614026]
[1768420259291,61.39291762,146.9,146.83,60.52018308]
[1768420260197,0.04774837,146.9,146.85,60.56945549]
[1768420260792,61.39291762,146.9,146.85,0.04927241]
[1768420260996,63.42142643,146.89,146.82,60.52018308]
[1768420262100,0.04539973,146.87,146.84,0.04454423]
[1768420264999,63.46682616,146.87,146.79,66.65168308]
[1768420265301,63.46682616,146.87,146.78,80.46]
[1768420265504,69.55002643,146.87,146.78,86.592]
[1768420265894,0.04836328,146.84,146.81,0.05124248]
[1768420266596,61.34516925,146.87,146.81,0.05124248]
[1768420266802,61.34516925,146.89,146.81,60.57142556]
[1768420267405,61.34516925,146.89,146.82,6.1304]
[1768420267601,0.04736257,146.87,146.84,0.04997787]
[1768420277915,61.34516925,146.92,146.84,66.69966095]
[1768420278615,2.07625718,146.93,146.84,60.57016095]
[1768420278616,63.42142643,146.91,146.84,60.57016095]
[1768420278809,63.42142643,146.91,146.84,60.52018308]
[1768420279113,0.04984603,146.89,146.86,0.04397038]
[1768420283811,60.25203153,146.89,146.82,6.1301]
[1768420284018,62.32828871,146.89,146.82,6.1301]
[1768420284206,60.25203153,146.89,146.82,6.1301]
[1768420284612,60.2021855,146.87,146.79,66.52943144]
[1768420284811,60.2021855,146.87,146.79,61.52943144]
[1768420285012,0.04308225,146.84,146.82,0.05044138]
[1768420285214,60.24526775,146.84,146.78,80.46]
[1768420285613,60.24526775,146.84,146.77,301.72914478]
[1768420285814,60.24526775,146.84,146.77,67.66183144]
[1768420286213,60.24526775,146.84,146.79,0.05132488]
[1768420286609,60.24526775,146.84,146.75,6.1333]
[1768420286809,60.2021855,146.84,146.75,61.52943144]
[1768420287515,0.04556545,146.81,146.79,61.52943144]
[1768420287823,60.2021855,146.87,146.79,61.52943144]
[1768420288720,0.04541317,146.84,146.82,0.04915876]
[1768420289719,60.2021855,146.89,146.82,0.04915876]
[1768420290219,60.2021855,146.89,146.82,61.5785902]
[1768420290423,63.45115252,146.92,146.82,61.5785902]
[1768420290619,63.45115252,146.92,146.86,0.04933455]
[1768420290824,0.05058406,146.88,146.86,0.04933455]
[1768420294519,80.46,146.94,146.86,61.57876599]
[1768420294714,60.2021855,146.94,146.86,61.57876599]
[1768420295423,0.0523879,146.91,146.86,61.57876599]
[1768420297828,0.0523879,146.91,146.86,67.70756599]
[1768420300827,60.2021855,147.0,146.89,61.52943144]
[1768420301423,60.2021855,146.98,146.89,61.52943144]
[1768420301732,60.2021855,146.98,146.89,67.65673144]
[1768420301930,0.04378872,146.95,146.92,0.04872608]
[1768420302320,0.04378872,146.95,146.92,61.57815752]
[1768420305427,196.08567086,147.04,146.94,61.52943144]
[1768420305428,60.2021855,147.03,146.94,61.52943144]
[1768420305726,60.2021855,147.06,146.95,61.52943144]
[1768420305937,63.45115252,147.06,146.95,67.65433144]
[1768420306230,60.2021855,147.03,146.95,61.52943144]
[1768420306419,0.04296539,147.0,146.98,0.05066549]
[1768420306623,60.24515089,147.0,146.92,61.52943144]
[1768420307224,0.04296539,147.0,146.92,67.65543144]
[1768420307426,0.04296539,147.0,146.92,61.52943144]
[1768420307627,0.04296539,147.0,146.95,0.05214087]
[1768420307827,0.0515582,146.99,146.95,0.05214087]
[1768420309123,0.0515582,146.99,146.95,61.58157231]
[1768420309428,60.2021855,147.07,146.98,61.52943144]
[1768420309831,63.45115252,147.07,146.98,61.52943144]
[1768420310228,64.81115252,147.07,146.95,67.65433144]
[1768420310422,63.45115252,147.07,147.0,0.04998004]
[1768420310630,60.40773956,147.04,146.93,9.37466702]
[1768420310832,60.40773956,147.04,146.93,76.06903833]
[1768420311030,60.40773956,147.04,146.93,69.94333833]
[1768420311534,60.40773956,147.04,146.94,61.69437131]
[1768420311834,60.40773956,147.04,146.98,0.04892085]
[1768420312732,60.4507437,147.02,146.98,0.04892085]
[1768420312935,60.4532143,147.01,146.94,66.69437131]
[1768420313235,60.4532143,147.01,146.93,6.1257]
[1768420313436,60.40773956,147.01,146.93,6.1257]
[1768420314034,0.04955116,146.98,146.96,0.04815695]
[1768420314231,0.04955116,146.98,146.91,66.69437131]
[1768420314437,0.04955116,146.98,146.91,61.69437131]
[1768420314438,60.45729072,146.98,146.91,61.69437131]
[1768420315125,0.04955116,146.98,146.91,61.69437131]
[1768420315331,0.04955116,146.98,146.93,0.04476413]
[1768420315733,0.04955116,146.98,146.93,61.73913544]
[1768420316133,60.40773956,147.01,146.93,61.73913544]
[1768420316937,60.40773956,147.01,146.93,67.86473544]
[1768420317137,0.04905366,146.98,146.93,67.86473544]
[1768420318635,0.04905366,146.98,146.94,6.1254]
[1768420318836,0.04905366,146.98,146.94,67.81977131]
[1768420319139,0.04905366,146.98,146.94,61.69437131]
[1768420321742,0.04905366,146.98,146.93,0.04476413]
[1768420321937,60.45679322,146.98,146.93,0.04476413]
[1768420323147,0.04905366,146.98,146.93,0.04476413]
[1768420325541,0.04905366,146.98,146.93,61.73913544]
[1768420330851,60.45679322,146.98,146.93,0.04476413]
[1768420331047,60.45679322,146.98,146.9,67.82117131]
[1768420331651,0.04905366,146.98,146.91,67.82107131]
[1768420331845,60.40773956,147.01,146.91,61.69437131]
[1768420332048,0.05106204,146.97,146.95,0.05062096]
[1768420332244,60.45210988,146.97,146.91,61.69437131]
[1768420332448,60.45210988,146.97,146.89,61.69437131]
[1768420333350,60.45210988,146.97,146.92,0.04338474]
[1768420333550,0.04437032,146.97,146.92,0.04338474]
[1768420338657,60.45210988,146.97,146.87,142.09437131]
[1768420338960,3.24896702,147.0,146.88,61.69437131]
[1768420338961,63.65670658,146.96,146.88,61.69437131]
[1768420339862,0.04775695,146.93,146.91,0.05016092]
[1768420341761,0.04775695,146.93,146.88,61.69437131]
[1768420342064,61.48113739,146.91,146.82,61.32446472]
[1768420342666,0.05145934,146.88,146.85,0.04344966]
[1768420344860,9.37536702,146.92,146.85,0.04344966]
[1768420345061,64.73010441,146.92,146.85,0.04344966]
[1768420345568,61.48113739,146.92,146.85,0.04344966]
[1768420345864,0.05143067,146.9,146.85,0.04344966]
[1768420347766,0.05143067,146.9,146.85,67.49711438]
[1768420347965,0.05143067,146.9,146.85,61.36791438]
[1768420348365,61.53256806,146.9,146.79,61.32446472]
[1768420348660,61.48113739,146.9,146.82,61.32446472]
[1768420349061,61.48113739,146.88,146.8,67.45546472]
[1768420349268,61.48113739,146.88,146.8,61.32446472]
[1768420349568,0.04599298,146.85,146.83,0.04416026]
[1768420350265,0.04599298,146.85,146.78,143.84190761]
[1768420350767,0.04599298,146.85,146.78,141.76446472]
[1768420351160,0.04599298,146.85,146.8,0.04646577]
[1768420355558,61.52713037,146.85,146.8,0.04646577]
[1768420355762,63.60457326,146.85,146.8,0.04646577]
[1768420357069,61.48113739,146.82,146.73,61.32446472]
[1768420357463,63.55858028,146.82,146.73,61.32446472]
[1768420358070,0.04360904,146.79,146.76,0.04313192]
[1768420358665,61.52474643,146.79,146.71,141.78446472]